[Event "10th LCC FIDE Open 2018"]
[Site "London"]
[Date "2018.12.16"]
[Round "9"]
[White "Menzies, Colin"]
[Black "Merriman, John"]
[Result "1-0"]
[ECO "A13"]
[WhiteElo "2132"]
[BlackElo "2261"]
[Annotator "NA"]
[PlyCount "125"]
[EventDate "2018.12.09"]
[EventType "swiss"]
[EventCountry "ENG"]
[SourceTitle "playchess.com"]
[Source "ChessBase"]
[SourceQuality "1"]
[TimeControl "40/5400+30:1800+30"]

1. Nf3 {[%emt 0:00:17]} d5 {[%emt 0:00:00]} 2. c4 {[%emt 0:00:05]} e6 {[%emt 0:00:00]} 3. e3 {[%emt 0:00:12]} Nf6 {[%emt 0:00:02]} 4. b3 {[%emt 0:00:06]} Be7 {[%emt 0:00:41]} 5. Bb2 {[%emt 0:00:19]} O-O {[%emt 0:00:08]} 6. Be2 {[%emt 0:00:46]} b6 {[%emt 0:01:09]} 7. O-O {[%emt 0:06:42]} Bb7 {[%emt 0:00:23]} 8. Qc2 {[%emt 0:03:49]} c5 {[%emt 0:04:06]} 9. cxd5 {[%emt 0:00:34]} Nxd5 {[%emt 0:02:12]} 10. a3 {[%emt 0:04:32]} Nd7 {[%emt 0:02:13]} 11. d3 {[%emt 0:01:22]} Bf6 {[%emt 0:03:07]} 12. Nc3 {[%emt 0:06:53]} Qe7 {[%emt 0:07:05]} 13. Rac1 {[%emt 0:09:20]} Rac8 {[%emt 0:03:47]} 14. Rfd1 {[%emt 0:01:40]} Rfd8 {[%emt 0:03:32]} 15. Nb5 {[%emt 0:06:39]} Ba6 {[%emt 0:12:00]} 16. Nc3 {[%emt 0:03:10]} Bb7 {[%emt 0:03:11]} 17. Nb5 {[%emt 0:01:36]} a6 {[%emt 0:00:32]} 18. Nc3 {[%emt 0:01:34]} b5 {[%emt 0:06:19]} 19. a4 {[%emt 0:07:52]} b4 {[%emt 0:12:04]} 20. Nxd5 {[%emt 0:00:26]} exd5 {[%emt 0:00:26]} 21. Nd2 {[%emt 0:05:07]} d4 {[%emt 0:07:43]} 22. e4 {[%emt 0:05:08]} g6 {[%emt 0:04:15]} 23. Bg4 {[%emt 0:06:46]} h5 {[%emt 0:03:19]} 24. Bxd7 {[%emt 0:00:09]} Qxd7 {[%emt 0:04:23]} 25. Rf1 {[%emt 0:03:55]} h4 {[%emt 0:02:42]} 26. Rce1 {[%emt 0:03:37]} Bg7 {[%emt 0:01:24]} 27. Nc4 {[%emt 0:01:55]} Rc7 {[%emt 0:05:31]} 28. Bc1 {[%emt 0:02:11]} Qe7 {[%emt 0:01:42]} 29. Bf4 {[%emt 0:01:45]} Rcc8 {[%emt 0:00:17]} 30. Qc1 {[%emt 0:03:37]} h3 {[%emt 0:01:06]} 31. g3 {[%emt 0:00:48]} Qe6 {[%emt 0:01:01]} 32. Bg5 {[%emt 0:03:25]} f6 {[%emt 0:01:18]} 33. Bh6 {[%emt 0:01:40]} Bh8 {[%emt 0:00:21]} 34. f4 {[%emt 0:04:19]} f5 {[%emt 0:01:04]} 35. Na5 {[%emt 0:01:00]} Ba8 {[%emt 0:05:56]} 36. Qc4 {[%emt 0:01:59]} Qxc4 {[%emt 0:00:22]} 37. Nxc4 {[%emt 0:00:12]} fxe4 {[%emt 0:01:02]} 38. dxe4 {[%emt 0:00:07]} d3 {[%emt 0:00:22]} 39. e5 {[%emt 0:02:20]} Rd4 {[%emt 0:01:37]} 40. Nb6 {[%emt 0:01:22]} Rb8 {[%emt 0:00:57]} 41. Nxa8 {[%emt 0:02:08]} Rxa8 {[%emt 0:01:21]} 42. Kf2 {[%emt 0:04:17]} d2 {[%emt 0:06:05]} 43. Rb1 {[%emt 0:00:20]} Rad8 {[%emt 0:02:06]} 44. Rfd1 {[%emt 0:00:33]} Kf7 {[%emt 0:14:24]} 45. Rb2 {[%emt 0:03:44]} a5 {[%emt 0:03:47]} 46. Ke3 {[%emt 0:01:39]} Rd3+ {[%emt 0:00:38]} 47. Ke2 {[%emt 0:00:09]} R8d4 {[%emt 0:01:45]} 48. Bg5 {[%emt 0:03:55]} Bg7 {[%emt 0:00:57]} 49. Rdxd2 {[%emt 0:01:32]} Rc3 {[%emt 0:00:14]} 50. Rxd4 {[%emt 0:03:45]} cxd4 {[%emt 0:00:01]} 51. Bd8 {[%emt 0:00:12]} Bf8 {[%emt 0:01:23]} 52. Bb6 {[%emt 0:00:08]} Re3+ {[%emt 0:01:56]} 53. Kd2 {[%emt 0:00:37]} Re4 {[%emt 0:01:11]} 54. Kd3 {[%emt 0:00:50]} Re1 {[%emt 0:00:05]} 55. Bxd4 {[%emt 0:01:19]} Ke6 {[%emt 0:00:07]} 56. Be3 {[%emt 0:04:02]} Kd5 {[%emt 0:00:22]} 57. Ba7 {[%emt 0:01:48]} Rd1+ {[%emt 0:00:37]} 58. Rd2 {[%emt 0:00:27]} Rc1 {[%emt 0:00:43]} 59. Ke2+ {[%emt 0:01:06]} Ke4 {[%emt 0:00:21]} 60. Rd4+ {[%emt 0:00:49]} Kf5 {[%emt 0:00:03]} 61. Rc4 {[%emt 0:02:38]} Rh1 {[%emt 0:00:38]} 62. Kf3 {[%emt 0:00:17]} Rxh2 {[%emt 0:00:51]} 63. Rc6 {[%emt 0:00:22]} 1-0